[Event "Titled Tuesday Blitz August 22 Late 2023"]
[White "Cruz, William Ferreira Da"]
[Black "Thomforde-Toates, Noah"]
[WhiteFideId "2118050"]
[BlackFideId "30951992"]
[WhiteElo "2308"]
[BlackElo "2608"]
[Result "0-1"]
[Round "1"]
[TimeControl "180+1"]
[Date "2023.08.22"]
[WhiteClock "0:00:23"]
[BlackClock "0:01:27"]
[Board "153"]

1. d4 {[%clk 0:03:00]}  Nf6 {[%clk 0:02:58]} 2. c4 {[%clk 0:03:00]}  g6 {[%clk 0:02:58]} 3. Nc3 {[%clk 0:03:00]}  Bg7 {[%clk 0:02:58]} 4. e4 {[%clk 0:03:00]}  d6 {[%clk 0:02:59]} 5. Nf3 {[%clk 0:03:00]}  O-O {[%clk 0:02:59]} 6. Be2 {[%clk 0:03:00]}  e5 {[%clk 0:02:59]} 7. O-O {[%clk 0:02:59]}  exd4 {[%clk 0:03:00]} 8. Nxd4 {[%clk 0:02:59]}  Re8 {[%clk 0:03:00]} 9. f3 {[%clk 0:02:57]}  c6 {[%clk 0:02:59]} 10. Nc2 {[%clk 0:02:47]}  Na6 {[%clk 0:02:56]} 11. Be3 {[%clk 0:02:42]}  d5 {[%clk 0:02:54]} 12. cxd5 {[%clk 0:02:38]}  cxd5 {[%clk 0:02:49]} 13. Bxa6 {[%clk 0:02:21]}  bxa6 {[%clk 0:02:47]} 14. Nxd5 {[%clk 0:02:05]}  Nxd5 {[%clk 0:02:44]} 15. Qxd5 {[%clk 0:01:59]}  Qxd5 {[%clk 0:02:44]} 16. exd5 {[%clk 0:01:58]}  Bf5 {[%clk 0:02:42]} 17. Rf2 {[%clk 0:01:19]}  Bxc2 {[%clk 0:02:40]} 18. Rxc2 {[%clk 0:01:20]}  Rxe3 {[%clk 0:02:40]} 19. Rd2 {[%clk 0:01:21]}  Rd8 {[%clk 0:02:39]} 20. d6 {[%clk 0:01:21]}  Rd7 {[%clk 0:02:38]} 21. Rc1 {[%clk 0:01:22]}  Bf8 {[%clk 0:02:29]} 22. Rc6 {[%clk 0:01:19]}  Re6 {[%clk 0:02:28]} 23. Rxa6 {[%clk 0:01:19]}  Rexd6 {[%clk 0:02:27]} 24. Rdxd6 {[%clk 0:01:15]}  Bxd6 {[%clk 0:02:27]} 25. Kf1 {[%clk 0:01:08]}  Bc5 {[%clk 0:02:26]} 26. Ke2 {[%clk 0:01:07]}  Bb6 {[%clk 0:02:25]} 27. Ra4 {[%clk 0:01:06]}  Re7+ {[%clk 0:02:21]} 28. Kd2 {[%clk 0:01:01]}  Kg7 {[%clk 0:02:21]} 29. Rc4 {[%clk 0:01:00]}  Rd7+ {[%clk 0:02:16]} 30. Ke2 {[%clk 0:01:00]}  Kf6 {[%clk 0:02:15]} 31. b4 {[%clk 0:01:00]}  Rd4 {[%clk 0:02:14]} 32. Rc6+ {[%clk 0:00:48]}  Ke5 {[%clk 0:02:14]} 33. a3 {[%clk 0:00:47]}  Rd6 {[%clk 0:02:13]} 34. Rc4 {[%clk 0:00:46]}  Kd5 {[%clk 0:02:12]} 35. Rh4 {[%clk 0:00:44]}  Re6+ {[%clk 0:02:12]} 36. Kd2 {[%clk 0:00:43]}  h5 {[%clk 0:02:11]} 37. g4 {[%clk 0:00:43]}  Be3+ {[%clk 0:02:00]} 38. Kc2 {[%clk 0:00:40]}  Bg5 {[%clk 0:01:54]} 39. Rh3 {[%clk 0:00:40]}  h4 {[%clk 0:01:55]} 40. a4 {[%clk 0:00:36]}  Re2+ {[%clk 0:01:52]} 41. Kb3 {[%clk 0:00:35]}  Ke5 {[%clk 0:01:42]} 42. b5 {[%clk 0:00:34]}  Kf4 {[%clk 0:01:42]} 43. a5 {[%clk 0:00:33]}  Bd8 {[%clk 0:01:38]} 44. b6 {[%clk 0:00:32]}  axb6 {[%clk 0:01:38]} 45. a6 {[%clk 0:00:32]}  Re3+ {[%clk 0:01:30]} 46. Ka2 {[%clk 0:00:29]}  Be7 {[%clk 0:01:29]} 47. Rxh4 {[%clk 0:00:23]}  Bxh4 {[%clk 0:01:27]} 0-1


[Site "https://www.chess.com"]

[Event "Titled Tuesday Blitz August 22 Late 2023"]
[White "Saif, Malek"]
[Black "Nery Junior, Jose Antonio"]
[WhiteFideId "8104220"]
[BlackFideId "2104822"]
[WhiteElo "2608"]
[BlackElo "2306"]
[Result "1-0"]
[Round "1"]
[TimeControl "180+1"]
[Date "2023.08.22"]
[WhiteClock "0:00:17"]
[BlackClock "0:00:21"]
[Board "154"]

1. e4 {[%clk 0:03:00]}  c5 {[%clk 0:02:59]} 2. Nf3 {[%clk 0:03:01]}  d6 {[%clk 0:03:00]} 3. d4 {[%clk 0:03:01]}  cxd4 {[%clk 0:03:01]} 4. Nxd4 {[%clk 0:03:02]}  Nf6 {[%clk 0:03:02]} 5. Nc3 {[%clk 0:03:03]}  a6 {[%clk 0:03:02]} 6. Be2 {[%clk 0:03:03]}  e6 {[%clk 0:03:03]} 7. O-O {[%clk 0:03:03]}  Qc7 {[%clk 0:03:03]} 8. Be3 {[%clk 0:03:03]}  Nbd7 {[%clk 0:03:04]} 9. Nb3 {[%clk 0:03:02]}  b5 {[%clk 0:03:05]} 10. a3 {[%clk 0:03:01]}  Bb7 {[%clk 0:03:05]} 11. f3 {[%clk 0:03:00]}  d5 {[%clk 0:03:06]} 12. exd5 {[%clk 0:02:59]}  Nxd5 {[%clk 0:03:07]} 13. Nxd5 {[%clk 0:02:59]}  Bxd5 {[%clk 0:03:07]} 14. Nd2 {[%clk 0:02:50]}  Bd6 {[%clk 0:03:08]} 15. f4 {[%clk 0:02:48]}  Nf6 {[%clk 0:03:06]} 16. Bd3 {[%clk 0:02:47]}  O-O {[%clk 0:02:58]} 17. Qe2 {[%clk 0:02:45]}  Rfd8 {[%clk 0:02:57]} 18. Rae1 {[%clk 0:02:45]}  Rac8 {[%clk 0:02:57]} 19. h3 {[%clk 0:02:35]}  Bc5 {[%clk 0:02:55]} 20. Qf2 {[%clk 0:02:30]}  Bxe3 {[%clk 0:02:54]} 21. Rxe3 {[%clk 0:02:31]}  Bc4 {[%clk 0:02:49]} 22. Bxc4 {[%clk 0:02:13]}  bxc4 {[%clk 0:02:48]} 23. Ne4 {[%clk 0:01:36]}  Nd5 {[%clk 0:02:41]} 24. Rg3 {[%clk 0:01:34]}  Rb8 {[%clk 0:02:28]} 25. b3 {[%clk 0:01:09]}  cxb3 {[%clk 0:02:18]} 26. cxb3 {[%clk 0:01:10]}  Ne7 {[%clk 0:02:05]} 27. Nf6+ {[%clk 0:01:03]}  Kh8 {[%clk 0:02:04]} 28. Nh5 {[%clk 0:01:02]}  Nf5 {[%clk 0:02:00]} 29. Rf3 {[%clk 0:01:00]}  Nd4 {[%clk 0:01:49]} 30. Rd3 {[%clk 0:00:54]}  Nxb3 {[%clk 0:01:45]} 31. Rg3 {[%clk 0:00:44]}  Rg8 {[%clk 0:01:21]} 32. Kh1 {[%clk 0:00:44]}  Na5 {[%clk 0:01:17]} 33. f5 {[%clk 0:00:42]}  exf5 {[%clk 0:01:16]} 34. Qxf5 {[%clk 0:00:41]}  Rb5 {[%clk 0:01:11]} 35. Qg4 {[%clk 0:00:34]}  Qe5 {[%clk 0:01:00]} 36. Nf4 {[%clk 0:00:25]}  Qf5 {[%clk 0:00:53]} 37. Qh4 {[%clk 0:00:24]}  Qc2 {[%clk 0:00:46]} 38. Nh5 {[%clk 0:00:19]}  Nc6 {[%clk 0:00:42]} 39. Rxf7 {[%clk 0:00:19]}  Nd8 {[%clk 0:00:40]} 40. Rfxg7 {[%clk 0:00:18]}  Qc1+ {[%clk 0:00:34]} 41. Kh2 {[%clk 0:00:18]}  Rxg7 {[%clk 0:00:21]} 42. Qxd8+ {[%clk 0:00:17]} 1-0


[Site "https://www.chess.com"]

[Event "Titled Tuesday Blitz August 22 Late 2023"]
[White "Ozates, Tuna"]
[Black "Zampronha, Wladimir Camilo"]
[WhiteFideId "6354521"]
[BlackFideId "2103087"]
[WhiteElo "2600"]
[BlackElo "2295"]
[Result "0-1"]
[Round "1"]
[TimeControl "180+1"]
[Date "2023.08.22"]
[WhiteClock "0:00:02"]
[BlackClock "0:00:04"]
[Board "160"]

1. e4 {[%clk 0:03:00]}  c5 {[%clk 0:02:59]} 2. Nf3 {[%clk 0:02:58]}  e6 {[%clk 0:02:59]} 3. c3 {[%clk 0:02:58]}  Nf6 {[%clk 0:02:58]} 4. e5 {[%clk 0:02:58]}  Nd5 {[%clk 0:02:57]} 5. d4 {[%clk 0:02:59]}  cxd4 {[%clk 0:02:58]} 6. cxd4 {[%clk 0:03:00]}  b6 {[%clk 0:02:57]} 7. Bd3 {[%clk 0:02:57]}  Bb7 {[%clk 0:02:57]} 8. O-O {[%clk 0:02:58]}  d6 {[%clk 0:02:58]} 9. Nbd2 {[%clk 0:02:57]}  Be7 {[%clk 0:02:46]} 10. Ne4 {[%clk 0:02:56]}  Nc6 {[%clk 0:02:23]} 11. Bg5 {[%clk 0:02:52]}  dxe5 {[%clk 0:02:20]} 12. dxe5 {[%clk 0:02:50]}  O-O {[%clk 0:02:16]} 13. Re1 {[%clk 0:02:00]}  Ncb4 {[%clk 0:02:12]} 14. Bb1 {[%clk 0:01:58]}  Rc8 {[%clk 0:02:11]} 15. Bxe7 {[%clk 0:01:52]}  Qxe7 {[%clk 0:02:09]} 16. Nd6 {[%clk 0:01:53]}  Rb8 {[%clk 0:02:06]} 17. a3 {[%clk 0:01:53]}  Na6 {[%clk 0:02:04]} 18. Qd3 {[%clk 0:01:51]}  g6 {[%clk 0:02:03]} 19. Qd2 {[%clk 0:01:47]}  f5 {[%clk 0:01:57]} 20. Nd4 {[%clk 0:01:37]}  Nc5 {[%clk 0:01:53]} 21. Ba2 {[%clk 0:01:36]}  Kh8 {[%clk 0:01:41]} 22. b4 {[%clk 0:01:32]}  Ne4 {[%clk 0:01:38]} 23. Nxe4 {[%clk 0:01:32]}  fxe4 {[%clk 0:01:39]} 24. Rxe4 {[%clk 0:01:32]}  Nxb4 {[%clk 0:01:30]} 25. Rg4 {[%clk 0:01:26]}  Nxa2 {[%clk 0:01:29]} 26. Qxa2 {[%clk 0:01:23]}  Bd5 {[%clk 0:01:29]} 27. Qd2 {[%clk 0:01:22]}  Qg7 {[%clk 0:01:23]} 28. Re1 {[%clk 0:01:21]}  Rbc8 {[%clk 0:01:22]} 29. h4 {[%clk 0:01:21]}  Qf7 {[%clk 0:01:16]} 30. h5 {[%clk 0:01:06]}  gxh5 {[%clk 0:01:11]} 31. Rh4 {[%clk 0:01:06]}  Rg8 {[%clk 0:01:09]} 32. g3 {[%clk 0:00:59]}  Rg4 {[%clk 0:01:04]} 33. Rh2 {[%clk 0:00:44]}  h4 {[%clk 0:00:57]} 34. Ne2 {[%clk 0:00:30]}  Rcg8 {[%clk 0:00:52]} 35. Qd3 {[%clk 0:00:23]}  Qg7 {[%clk 0:00:42]} 36. Rh3 {[%clk 0:00:19]}  Qxe5 {[%clk 0:00:36]} 37. Rc1 {[%clk 0:00:19]}  Qg5 {[%clk 0:00:24]} 38. Qc3+ {[%clk 0:00:18]}  e5 {[%clk 0:00:20]} 39. Rd1 {[%clk 0:00:16]}  Ba8 {[%clk 0:00:18]} 40. Rd7 {[%clk 0:00:15]}  Qf5 {[%clk 0:00:12]} 41. Nf4 {[%clk 0:00:13]}  Rxf4 {[%clk 0:00:10]} 42. Qb2 {[%clk 0:00:03]}  Qxd7 {[%clk 0:00:07]} 43. Qxe5+ {[%clk 0:00:03]}  Qg7 {[%clk 0:00:06]} 44. Qxf4 {[%clk 0:00:02]}  Qa1+ {[%clk 0:00:05]} 45. Kh2 {[%clk 0:00:02]}  Qh1# {[%clk 0:00:04]} 0-1


[Site "https://www.chess.com"]

[Event "Titled Tuesday Blitz August 22 Late 2023"]
[White "Mikhaylova, Irina"]
[Black "Aldokhin, Ivan"]
[WhiteFideId "4109040"]
[BlackFideId "24115720"]
[WhiteElo "2293"]
[BlackElo "2598"]
[Result "0-1"]
[Round "1"]
[TimeControl "180+1"]
[Date "2023.08.22"]
[WhiteClock "0:00:05"]
[BlackClock "0:00:04"]
[Board "161"]

1. d4 {[%clk 0:02:55]}  Nf6 {[%clk 0:03:00]} 2. Nf3 {[%clk 0:02:55]}  g6 {[%clk 0:03:00]} 3. c4 {[%clk 0:02:56]}  Bg7 {[%clk 0:03:01]} 4. Nc3 {[%clk 0:02:56]}  d6 {[%clk 0:03:01]} 5. e4 {[%clk 0:02:56]}  O-O {[%clk 0:03:02]} 6. Be2 {[%clk 0:02:57]}  Nc6 {[%clk 0:03:03]} 7. d5 {[%clk 0:02:57]}  Nb4 {[%clk 0:03:02]} 8. O-O {[%clk 0:02:57]}  Re8 {[%clk 0:03:02]} 9. Be3 {[%clk 0:02:51]}  e6 {[%clk 0:03:01]} 10. a3 {[%clk 0:02:45]}  Na6 {[%clk 0:03:00]} 11. Bd4 {[%clk 0:02:35]}  exd5 {[%clk 0:02:38]} 12. exd5 {[%clk 0:02:33]}  Nc5 {[%clk 0:02:37]} 13. b4 {[%clk 0:02:17]}  Nce4 {[%clk 0:02:29]} 14. Nxe4 {[%clk 0:02:11]}  Nxe4 {[%clk 0:02:28]} 15. Bxg7 {[%clk 0:01:27]}  Kxg7 {[%clk 0:02:29]} 16. Bd3 {[%clk 0:01:25]}  Bg4 {[%clk 0:02:21]} 17. Re1 {[%clk 0:01:12]}  Ng5 {[%clk 0:02:07]} 18. Rxe8 {[%clk 0:01:07]}  Qxe8 {[%clk 0:02:01]} 19. Be2 {[%clk 0:01:06]}  Bxf3 {[%clk 0:01:57]} 20. Bxf3 {[%clk 0:01:06]}  Qe5 {[%clk 0:01:56]} 21. Ra2 {[%clk 0:00:44]}  Nxf3+ {[%clk 0:01:38]} 22. gxf3 {[%clk 0:00:42]}  Re8 {[%clk 0:01:37]} 23. Qd2 {[%clk 0:00:37]}  Qf6 {[%clk 0:01:19]} 24. Kg2 {[%clk 0:00:32]}  Re5 {[%clk 0:01:15]} 25. f4 {[%clk 0:00:24]}  Re4 {[%clk 0:01:13]} 26. Qb2 {[%clk 0:00:25]}  Rxc4 {[%clk 0:01:03]} 27. Qxf6+ {[%clk 0:00:24]}  Kxf6 {[%clk 0:01:03]} 28. Kg3 {[%clk 0:00:25]}  c6 {[%clk 0:00:33]} 29. dxc6 {[%clk 0:00:21]}  bxc6 {[%clk 0:00:33]} 30. Rd2 {[%clk 0:00:21]}  d5 {[%clk 0:00:31]} 31. f3 {[%clk 0:00:21]}  a6 {[%clk 0:00:28]} 32. Rb2 {[%clk 0:00:21]}  Kf5 {[%clk 0:00:20]} 33. a4 {[%clk 0:00:21]}  Rxf4 {[%clk 0:00:18]} 34. b5 {[%clk 0:00:22]}  axb5 {[%clk 0:00:16]} 35. axb5 {[%clk 0:00:22]}  cxb5 {[%clk 0:00:12]} 36. Rxb5 {[%clk 0:00:22]}  Rd4 {[%clk 0:00:10]} 37. Rb7 {[%clk 0:00:22]}  Kf6 {[%clk 0:00:09]} 38. Rb6+ {[%clk 0:00:21]}  Kg7 {[%clk 0:00:07]} 39. Rd6 {[%clk 0:00:21]}  g5 {[%clk 0:00:05]} 40. Rd7 {[%clk 0:00:19]}  h5 {[%clk 0:00:05]} 41. Kh3 {[%clk 0:00:19]}  Kf6 {[%clk 0:00:05]} 42. Kg3 {[%clk 0:00:16]}  Rd3 {[%clk 0:00:05]} 43. Kf2 {[%clk 0:00:16]}  Ke6 {[%clk 0:00:05]} 44. Rd8 {[%clk 0:00:16]}  Ke5 {[%clk 0:00:05]} 45. Rf8 {[%clk 0:00:13]}  f5 {[%clk 0:00:04]} 46. Ke2 {[%clk 0:00:09]}  Ra3 {[%clk 0:00:03]} 47. Re8+ {[%clk 0:00:07]}  Kf4 {[%clk 0:00:03]} 48. Rd8 {[%clk 0:00:08]}  Re3+ {[%clk 0:00:03]} 49. Kd2 {[%clk 0:00:07]}  Rxf3 {[%clk 0:00:03]} 50. Rxd5 {[%clk 0:00:07]}  Rf2+ {[%clk 0:00:03]} 51. Ke1 {[%clk 0:00:07]}  Rxh2 {[%clk 0:00:04]} 52. Kf1 {[%clk 0:00:05]}  g4 {[%clk 0:00:04]} 0-1


[Site "https://www.chess.com"]

[Event "Titled Tuesday Blitz August 22 Late 2023"]
[White "Hercegovac, Neven"]
[Black "Ibadov, Dashgyn"]
[WhiteFideId "2839135"]
[BlackFideId "24107514"]
[WhiteElo "2292"]
[BlackElo "2596"]
[Result "1/2-1/2"]
[Round "1"]
[TimeControl "180+1"]
[Date "2023.08.22"]
[WhiteClock "0:00:13"]
[BlackClock "0:00:05"]
[Board "163"]

1. d4 {[%clk 0:02:58]}  d5 {[%clk 0:02:59]} 2. Bf4 {[%clk 0:02:58]}  Nf6 {[%clk 0:02:59]} 3. e3 {[%clk 0:02:49]}  c5 {[%clk 0:03:00]} 4. Nf3 {[%clk 0:02:45]}  Nc6 {[%clk 0:03:00]} 5. Nbd2 {[%clk 0:02:35]}  Qb6 {[%clk 0:02:58]} 6. dxc5 {[%clk 0:02:32]}  Qxb2 {[%clk 0:02:59]} 7. Rb1 {[%clk 0:02:29]}  Qc3 {[%clk 0:02:59]} 8. Bb5 {[%clk 0:02:27]}  g6 {[%clk 0:02:59]} 9. e4 {[%clk 0:02:23]}  dxe4 {[%clk 0:02:45]} 10. Be5 {[%clk 0:02:19]}  Qa5 {[%clk 0:02:46]} 11. O-O {[%clk 0:02:16]}  exf3 {[%clk 0:02:43]} 12. Bxc6+ {[%clk 0:01:52]}  bxc6 {[%clk 0:02:43]} 13. Qxf3 {[%clk 0:01:50]}  Nd5 {[%clk 0:02:39]} 14. Bxh8 {[%clk 0:01:47]}  Qxd2 {[%clk 0:02:39]} 15. c4 {[%clk 0:01:44]}  f6 {[%clk 0:02:10]} 16. Rfd1 {[%clk 0:01:40]}  Qc3 {[%clk 0:02:03]} 17. cxd5 {[%clk 0:01:39]}  Qxf3 {[%clk 0:02:03]} 18. gxf3 {[%clk 0:01:37]}  Bf5 {[%clk 0:01:50]} 19. Rb7 {[%clk 0:01:33]}  O-O-O {[%clk 0:01:43]} 20. Rxa7 {[%clk 0:01:31]}  Kb8 {[%clk 0:01:30]} 21. Ra6 {[%clk 0:01:31]}  Rxd5 {[%clk 0:01:25]} 22. Rxd5 {[%clk 0:00:51]}  cxd5 {[%clk 0:01:26]} 23. Rb6+ {[%clk 0:00:47]}  Kc7 {[%clk 0:01:23]} 24. Rb4 {[%clk 0:00:45]}  Kc6 {[%clk 0:01:12]} 25. a4 {[%clk 0:00:24]}  Kxc5 {[%clk 0:01:08]} 26. Rb8 {[%clk 0:00:24]}  Bh6 {[%clk 0:01:08]} 27. a5 {[%clk 0:00:24]}  Bf4 {[%clk 0:00:58]} 28. Rb7 {[%clk 0:00:19]}  d4 {[%clk 0:00:46]} 29. a6 {[%clk 0:00:17]}  Bc8 {[%clk 0:00:10]} 30. Rxe7 {[%clk 0:00:14]}  Bxa6 {[%clk 0:00:09]} 31. Bxf6 {[%clk 0:00:14]}  d3 {[%clk 0:00:09]} 32. Rd7 {[%clk 0:00:14]}  d2 {[%clk 0:00:09]} 33. Bc3 {[%clk 0:00:14]}  Bb5 {[%clk 0:00:07]} 34. Rxd2 {[%clk 0:00:12]}  Bxd2 {[%clk 0:00:06]} 35. Bxd2 {[%clk 0:00:13]}  Bc6 {[%clk 0:00:06]} 36. Kg2 {[%clk 0:00:14]}  Kd6 {[%clk 0:00:06]} 37. Kg3 {[%clk 0:00:14]}  Ke6 {[%clk 0:00:06]} 38. h4 {[%clk 0:00:14]}  Kf5 {[%clk 0:00:07]} 39. Be3 {[%clk 0:00:13]}  h5 {[%clk 0:00:05]} 40. Bg5 {[%clk 0:00:13]} 1/2-1/2


[Site "https://www.chess.com"]

[Event "Titled Tuesday Blitz August 22 Late 2023"]
[White "Tologon tegin, Semetei"]
[Black "Shapiro, Daniel"]
[WhiteFideId "13800574"]
[BlackFideId "2001780"]
[WhiteElo "2596"]
[BlackElo "2292"]
[Result "1/2-1/2"]
[Round "1"]
[TimeControl "180+1"]
[Date "2023.08.22"]
[WhiteClock "0:00:02"]
[BlackClock "0:00:27"]
[Board "164"]

1. d4 {[%clk 0:02:51]}  Nf6 {[%clk 0:02:56]} 2. Nc3 {[%clk 0:02:52]}  d5 {[%clk 0:02:55]} 3. Bf4 {[%clk 0:02:52]}  a6 {[%clk 0:02:55]} 4. e3 {[%clk 0:02:51]}  e6 {[%clk 0:02:56]} 5. a3 {[%clk 0:02:50]}  Bd6 {[%clk 0:02:56]} 6. Nf3 {[%clk 0:02:49]}  c5 {[%clk 0:02:56]} 7. dxc5 {[%clk 0:02:47]}  Bxc5 {[%clk 0:02:55]} 8. Bd3 {[%clk 0:02:47]}  Nc6 {[%clk 0:02:51]} 9. O-O {[%clk 0:02:46]}  Bd6 {[%clk 0:02:49]} 10. Bxd6 {[%clk 0:02:39]}  Qxd6 {[%clk 0:02:48]} 11. e4 {[%clk 0:02:39]}  dxe4 {[%clk 0:02:44]} 12. Nxe4 {[%clk 0:02:40]}  Nxe4 {[%clk 0:02:43]} 13. Bxe4 {[%clk 0:02:41]}  Qxd1 {[%clk 0:02:26]} 14. Raxd1 {[%clk 0:02:42]}  Bd7 {[%clk 0:02:26]} 15. Rd6 {[%clk 0:02:21]}  Ke7 {[%clk 0:02:18]} 16. Rfd1 {[%clk 0:02:21]}  Rhd8 {[%clk 0:02:19]} 17. Ng5 {[%clk 0:02:00]}  Be8 {[%clk 0:02:00]} 18. Rxd8 {[%clk 0:01:58]}  Rxd8 {[%clk 0:02:00]} 19. Rxd8 {[%clk 0:01:58]}  Nxd8 {[%clk 0:01:49]} 20. Kf1 {[%clk 0:00:50]}  h6 {[%clk 0:01:49]} 21. Nf3 {[%clk 0:00:50]}  Bc6 {[%clk 0:01:45]} 22. Bxc6 {[%clk 0:00:48]}  Nxc6 {[%clk 0:01:45]} 23. Ke2 {[%clk 0:00:48]}  Kd6 {[%clk 0:01:45]} 24. Kd3 {[%clk 0:00:48]}  e5 {[%clk 0:01:43]} 25. c4 {[%clk 0:00:46]}  f5 {[%clk 0:01:39]} 26. Nd2 {[%clk 0:00:44]}  a5 {[%clk 0:01:35]} 27. Kc3 {[%clk 0:00:43]}  e4 {[%clk 0:01:21]} 28. b4 {[%clk 0:00:42]}  axb4+ {[%clk 0:01:21]} 29. axb4 {[%clk 0:00:43]}  Ke5 {[%clk 0:01:20]} 30. b5 {[%clk 0:00:40]}  Nb8 {[%clk 0:01:15]} 31. c5 {[%clk 0:00:30]}  f4 {[%clk 0:01:15]} 32. Kc4 {[%clk 0:00:17]}  g5 {[%clk 0:01:11]} 33. h3 {[%clk 0:00:16]}  h5 {[%clk 0:01:11]} 34. Nb3 {[%clk 0:00:06]}  g4 {[%clk 0:01:07]} 35. hxg4 {[%clk 0:00:06]}  hxg4 {[%clk 0:01:08]} 36. g3 {[%clk 0:00:06]}  e3 {[%clk 0:00:56]} 37. gxf4+ {[%clk 0:00:06]}  Kxf4 {[%clk 0:00:56]} 38. fxe3+ {[%clk 0:00:07]}  Kxe3 {[%clk 0:00:57]} 39. Nd4 {[%clk 0:00:06]}  Ke4 {[%clk 0:00:41]} 40. Ne2 {[%clk 0:00:03]}  Kf3 {[%clk 0:00:39]} 41. Nd4+ {[%clk 0:00:03]}  Ke4 {[%clk 0:00:26]} 42. Ne2 {[%clk 0:00:03]}  Kf3 {[%clk 0:00:27]} 43. Nd4+ {[%clk 0:00:02]}  Ke4 {[%clk 0:00:27]} 1/2-1/2


[Site "https://www.chess.com"]

[Event "Titled Tuesday Blitz August 22 Late 2023"]
[White "Fernandez Hernandez, Gerardo"]
[Black "Erzhanov, Arman"]
[WhiteFideId "2207400"]
[BlackFideId "4138821"]
[WhiteElo "2265"]
[BlackElo "2577"]
[Result "0-1"]
[Round "1"]
[TimeControl "180+1"]
[Date "2023.08.22"]
[WhiteClock "0:00:00"]
[BlackClock "0:02:15"]
[Board "173"]

1. e4 {[%clk 0:02:59]}  d6 {[%clk 0:02:59]} 2. Nc3 {[%clk 0:02:57]}  Nf6 {[%clk 0:02:58]} 3. f4 {[%clk 0:02:57]}  d5 {[%clk 0:02:59]} 4. e5 {[%clk 0:02:54]}  d4 {[%clk 0:02:59]} 5. exf6 {[%clk 0:02:53]}  dxc3 {[%clk 0:02:59]} 6. fxg7 {[%clk 0:02:43]}  cxd2+ {[%clk 0:02:58]} 7. Qxd2 {[%clk 0:02:42]}  Qxd2+ {[%clk 0:02:59]} 8. Bxd2 {[%clk 0:02:39]}  Bxg7 {[%clk 0:03:00]} 9. O-O-O {[%clk 0:02:37]}  Nc6 {[%clk 0:02:59]} 10. Nf3 {[%clk 0:02:32]}  a6 {[%clk 0:02:58]} 11. Bc4 {[%clk 0:02:28]}  Bg4 {[%clk 0:02:56]} 12. Rhf1 {[%clk 0:02:15]}  Nd4 {[%clk 0:02:42]} 13. Bc3 {[%clk 0:02:00]}  Bxf3 {[%clk 0:02:34]} 14. gxf3 {[%clk 0:01:26]}  Nf5 {[%clk 0:02:34]} 15. Rd3 {[%clk 0:00:59]}  Bxc3 {[%clk 0:02:32]} 16. Rxc3 {[%clk 0:00:58]}  Rd8 {[%clk 0:02:30]} 17. Bd3 {[%clk 0:00:53]}  Ne3 {[%clk 0:02:30]} 18. Bb5+ {[%clk 0:00:47]}  axb5 {[%clk 0:02:27]} 19. Rxe3 {[%clk 0:00:48]}  Rg8 {[%clk 0:02:22]} 20. Rfe1 {[%clk 0:00:47]}  Rd7 {[%clk 0:02:23]} 21. f5 {[%clk 0:00:46]}  Rg2 {[%clk 0:02:21]} 22. f6 {[%clk 0:00:40]}  e6 {[%clk 0:02:21]} 23. R3e2 {[%clk 0:00:31]}  Rg6 {[%clk 0:02:18]} 24. Re5 {[%clk 0:00:20]}  c6 {[%clk 0:02:19]} 25. Rh5 {[%clk 0:00:18]}  h6 {[%clk 0:02:19]} 26. f4 {[%clk 0:00:11]}  Rxf6 {[%clk 0:02:16]} 27. f5 {[%clk 0:00:12]}  Rd5 {[%clk 0:02:15]} 28. b3 {[%clk 0:00:05]}  Rdxf5 {[%clk 0:02:15]} 29. Rxf5 {[%clk 0:00:02]}  Rxf5 {[%clk 0:02:16]} 30. Re2 {[%clk 0:00:02]}  Ke7 {[%clk 0:02:15]} 31. Kb2 {[%clk 0:00:02]}  Rf3 {[%clk 0:02:15]} 32. a3 {[%clk 0:00:00]}  h5 {[%clk 0:02:15]} 0-1


[Site "https://www.chess.com"]